lending/lending_fUSD_20241014
["ID","MTS","AMOUNT","RATE_DAILY","PERIOD"]
[340241990,1728902433971,-150.0,0.00011,2]
[340241992,1728902601914,243.44,0.00011,2]
[340241993,1728902861784,550.0,0.0001,2]
[340241994,1728902932107,1243.6,0.00010656,2]
[340242006,1728903032177,-500.0,0.00012,2]
[340242007,1728903032186,-600.0,0.00012,2]
[340242008,1728903032195,-217.462653,0.00012329,2]
[340242009,1728903032204,-207.966692,0.00012329,2]
[340242010,1728903032213,-207.966692,0.00012329,2]
[340242011,1728903032222,-151.0,0.00012329,2]
[340242012,1728903032231,-151.0,0.00012329,2]
[340242013,1728903032243,-157.718121,0.00012329,2]
[340242014,1728903032256,-157.718121,0.00012329,2]
[340242015,1728903032265,-1000.0,0.00012497,2]
[340242016,1728903032274,-306.67,0.000125,2]
[340242017,1728903032283,-500.0,0.00012557,2]
[340242018,1728903032293,-965.92190138,0.00012574,2]
[340242019,1728903032304,-300.0,0.00012574,2]
[340242020,1728903032315,-404.0,0.00012574,2]
[340242021,1728903032325,-493.5770007,0.00012574,2]
[340242022,1728903032336,-264.82796935,0.00012574,2]
[340242023,1728903032347,-349.70936002,0.00012574,2]
[340242024,1728903032357,-300.0,0.00012574,2]
[340242025,1728903032368,-573.03210488,0.00012574,2]
[340242026,1728903032380,-3700.0,0.00012574,2]
[340242027,1728903032391,-12638.2370494,0.00012574,2]
[340242028,1728903032402,-500.7016373,0.00012574,2]
[340242029,1728903032413,-811.05669613,0.00012574,2]
[340242030,1728903032424,-295.44814184,0.00012574,2]
[340242031,1728903032435,-2303.488139,0.00012574,2]
[340242032,1728903032444,-172.51,0.00012574,2]
[340242033,1728903032453,-1362.44,0.00012578,2]
[340242034,1728903032462,-250.0,0.00012671,2]
[340242035,1728903032471,-174.69,0.00012695,2]
[340242036,1728903032480,-499.99,0.00012695,2]
[340242037,1728903032492,-174.69,0.00012727,2]
[340242038,1728903032501,-174.69,0.00012759,2]
[340242039,1728903032510,-174.5,0.00012861,2]
[340242040,1728903032519,-1243.6,0.0001292,2]
[340242041,1728903032528,-192.39,0.00012934,2]
[340242042,1728903032537,-250.0,0.00013092,2]
[340242043,1728903032547,-200.0,0.00013323,2]
[340242044,1728903032555,-150.0,0.00013369,2]
[340242045,1728903032564,-2751.0,0.0001337,2]
[340242046,1728903032573,-250.0,0.0001337,2]
[340242047,1728903032583,-2830.94,0.00013379,2]
[340242048,1728903032592,-167.0,0.00013385,2]
[340242049,1728903032601,-150.0,0.00013483,2]
[340242050,1728903032611,-150.0,0.00013494,2]
[340242051,1728903032620,-150.0,0.00013498,2]
[340242052,1728903032629,-150.0,0.00013507,2]
[340242053,1728903032639,-1500.0,0.00013507,2]
[340242054,1728903032649,-150.0,0.00013508,2]
[340242055,1728903032658,-150.0,0.00013512,2]
[340242056,1728903032667,-150.0,0.00013516,2]
[340242057,1728903032676,-150.0,0.00013525,2]
[340242058,1728903032685,-150.0,0.00013528,2]
[340242059,1728903032694,-150.0,0.00013528,2]
[340242060,1728903032703,-150.0,0.0001353,2]
[340242061,1728903032713,-150.0,0.0001353,2]
[340242062,1728903032722,-150.0,0.0001353,2]
[340242063,1728903032732,-150.0,0.00013531,2]
[340242064,1728903032741,-150.0,0.00013533,2]
[340242065,1728903032751,-150.0,0.00013545,2]
[340242066,1728903032760,-150.0,0.00013552,2]
[340242067,1728903032770,-150.0,0.00013553,2]
[340242068,1728903032779,-150.0,0.00013553,2]
[340242069,1728903032788,-150.0,0.00013558,2]
[340242070,1728903032797,-150.0,0.00013564,2]
[340242071,1728903032811,-150.0,0.00013564,2]
[340242072,1728903032821,-150.0,0.00013567,2]
[340242073,1728903032831,-150.0,0.00013569,2]
[340242074,1728903032840,-150.0,0.00013574,2]
[340242075,1728903032850,-150.0,0.00013581,2]
[340242076,1728903032860,-150.0,0.00013585,2]
[340242077,1728903032869,-150.0,0.00013586,2]
[340242078,1728903032879,-150.0,0.0001359,2]
[340242079,1728903032889,-150.0,0.00013598,2]
[340242080,1728903032898,-150.0,0.00013598,2]
[340242081,1728903032907,-150.0,0.00013601,2]
[340242082,1728903032917,-150.0,0.00013603,2]
[340242083,1728903032926,-169.44943357,0.00013606,4]
[340242084,1728903032935,-150.0,0.00013611,2]
[340242085,1728903032944,-150.0,0.00013611,2]
[340242086,1728903032953,-150.0,0.00013615,2]
[340242087,1728903032963,-150.0,0.00013626,2]
[340242088,1728903032972,-150.0,0.00013629,2]
[340242089,1728903032982,-150.0,0.00013633,2]
[340242090,1728903032991,-1500.0,0.00013638,2]
[340242091,1728903033000,-150.0,0.00013642,2]
[340242092,1728903033009,-7290.9078,0.00013643,2]
[340242093,1728903033019,-150.0,0.00013648,2]
[340242094,1728903033109,-150.0,0.00013649,2]
[340242095,1728903033121,-150.0,0.00013649,2]
[340242096,1728903033130,-150.0,0.0001365,2]
[340242097,1728903033140,-150.0,0.00013651,2]
[340242098,1728903033149,-150.0,0.00013655,2]
[340242099,1728903033159,-150.0,0.00013656,2]
[340242100,1728903033168,-150.0,0.00013657,2]
[340242101,1728903033177,-150.0,0.00013659,2]
[340242102,1728903033186,-423.26084594,0.0001366,2]
[340242103,1728903033196,-150.0,0.00013668,2]
[340242104,1728903033206,-150.0,0.00013668,2]
[340242105,1728903033216,-150.0,0.00013669,2]
[340242106,1728903033225,-150.0,0.00013673,2]
[340242107,1728903033234,-150.0,0.00013677,2]
[340242108,1728903033244,-150.0,0.00013683,2]
[340242109,1728903033253,-150.0,0.00013684,2]
[340242110,1728903033262,-1500.0,0.00013684,2]
[340242111,1728903033272,-150.0,0.00013685,2]
[340242112,1728903033282,-150.0,0.00013686,2]
[340242113,1728903033291,-500.0,0.00013689,2]
[340242114,1728903033301,-500.0,0.0001369,2]
[340242115,1728903033312,-500.0,0.0001369,2]
[340242116,1728903033321,-200.0,0.00013699,2]
[340242117,1728903033331,-1500.0,0.00013699,2]
[340242118,1728903033341,-2006.456,0.000137,2]
[340242119,1728903033351,-2125.033,0.00013706,2]
[340242120,1728903033360,-150.0,0.00013711,2]
[340242121,1728903033370,-150.0,0.00013718,2]
[340242122,1728903033379,-150.0,0.00013726,2]
[340242123,1728903033388,-715.38776101,0.00013726,2]
[340242124,1728903033397,-150.0,0.00013728,2]
[340242125,1728903033407,-150.0,0.00013732,2]
[340242126,1728903033416,-150.0,0.00013734,2]
[340242127,1728903033426,-150.0,0.00013735,2]
[340242128,1728903033435,-150.0,0.00013741,2]
[340242129,1728903033444,-150.0,0.00013741,2]
[340242130,1728903033453,-150.0,0.00013742,2]
[340242131,1728903033463,-150.0,0.00013742,2]
[340242132,1728903033473,-26942.7944,0.00013743,2]
[340242133,1728903033482,-357.0158,0.00013743,2]
[340242134,1728903033491,-150.0,0.00013745,2]
[340242135,1728903033501,-150.0,0.00013745,2]
[340242136,1728903033510,-150.0,0.00013746,2]
[340242137,1728903033520,-150.0,0.00013752,2]
[340242138,1728903033530,-150.0,0.00013752,2]
[340242139,1728903033540,-150.0,0.00013767,2]
[340242140,1728903033549,-500.0,0.00013773,2]
[340242141,1728903033558,-505.36067579,0.00013773,2]
[340242142,1728903033568,-904.38669898,0.00013773,2]
[340242143,1728903033578,-450.3104,0.00013781,2]
[340242144,1728903033587,-37968.8622402,0.00013797,2]
[340242145,1728903033597,-6230.9020221,0.00013797,2]
[340242146,1728903033607,-151.0,0.000138,2]
[340242147,1728903033616,-207.966692,0.000138,2]
[340242148,1728903033626,-207.966692,0.000138,2]
[340242149,1728903033635,-151.0,0.000138,2]
[340242150,1728903033645,-151.0,0.000138,2]
[340242151,1728903033654,-157.718121,0.000138,2]
[340242152,1728903033664,-157.718121,0.000138,2]
[340242153,1728903033673,-2000.0,0.000138,2]
[340242154,1728903033683,-200.0,0.000138,2]
[340242155,1728903033696,-540.12449803,0.00013806,2]
[340242156,1728903033713,-812.0,0.00013873,2]
[340242157,1728903033727,-560.0,0.00013873,2]
[340242158,1728903033743,-935.0,0.00013873,2]
[340242159,1728903033759,-150.0,0.00013873,2]
[340242160,1728903033775,-2621.636,0.00013873,2]
[340242161,1728903033792,-809.0,0.00013873,2]
[340242162,1728903033809,-150.0,0.00013873,2]
[340242163,1728903033825,-211.286,0.00013873,2]
[340242164,1728903033843,-5246.259,0.00013873,2]
[340242165,1728903033860,-13529.0,0.00013873,2]
[340242166,1728903033872,-1150.0,0.00013873,2]
[340242167,1728903033888,-151.0,0.0001389,2]
[340242168,1728903033905,-151.0,0.0001389,2]
[340242169,1728903033922,-151.0,0.0001389,2]
[340242170,1728903033940,-285.488985,0.0001389,2]
[340242171,1728903033954,-151.0,0.0001389,2]
[340242172,1728903033967,-155.506915,0.0001389,2]
[340242173,1728903033981,-405.083581,0.0001389,2]
[340242174,1728903033998,-405.083581,0.0001389,2]
[340242175,1728903034012,-151.0,0.0001389,2]
[340242176,1728903034026,-151.0,0.0001389,2]
[340242177,1728903034040,-151.0,0.000139,2]
[340242178,1728903034052,-207.966692,0.000139,2]
[340242179,1728903034066,-207.966692,0.000139,2]
[340242180,1728903034079,-151.0,0.000139,2]
[340242181,1728903034093,-151.0,0.000139,2]
[340242182,1728903034106,-157.718121,0.000139,2]
[340242183,1728903034118,-157.718121,0.000139,2]
[340242184,1728903034132,-1989.25386077,0.00013938,2]
[340242185,1728903034145,-200.0,0.00013938,2]
[340242186,1728903034158,-160.24,0.00013963,2]
[340242187,1728903034171,-650.0,0.00014,2]
[340242188,1728903034184,-1000.0,0.0001406,2]
[340242189,1728903034197,-306.67,0.00014063,2]
[340242190,1728903034211,-200.0,0.00014077,2]
[340242191,1728903034224,-167.0,0.00014088,2]
[340242192,1728903034237,-167.0,0.00014121,2]
[340242193,1728903034252,-200.0,0.00014218,2]
[340242194,1728903034265,-200.0,0.0001436,2]
[340242195,1728903034278,-167.0,0.00014499,2]
[340242196,1728903034291,-180.0,0.00014715,2]
[340242197,1728903034304,-904.38669893,0.00014732,2]
[340242198,1728903034317,-167.0,0.00014857,2]
[340242199,1728903034331,-482.0,0.00015,2]
[340242200,1728903034344,-199.0,0.00015,2]
[340242201,1728903034356,-600.0,0.00015,2]
[340242202,1728903034369,-600.0,0.00015,2]
[340242203,1728903034382,-600.0,0.00015,2]
[340242204,1728903034394,-600.0,0.00015,2]
[340242205,1728903034407,-600.0,0.00015,2]
[340242206,1728903034420,-600.0,0.00015,2]
[340242207,1728903034433,-600.0,0.00015,2]
[340242208,1728903034445,-600.0,0.00015,2]
[340242209,1728903034458,-600.0,0.00015,2]
[340242210,1728903034471,-600.0,0.00015,2]
[340242211,1728903034484,-728.30520409,0.00015,2]
[340242212,1728903034498,-300.0,0.00015068,2]
[340242213,1728903034510,-359.2,0.00015096,2]
[340242214,1728903034524,-1243.6,0.00015184,2]
[340242215,1728903034537,-160.24,0.00015233,2]
[340242216,1728903034550,-152.85,0.00015287,2]
[340242217,1728903034563,-192.39,0.0001552,2]
[340242218,1728903034577,-167.0,0.00015594,2]
[340242219,1728903034678,-1000.0,0.00015622,2]
[340242220,1728903034731,-306.67,0.00015625,2]
[340242221,1728903034741,-172.73,0.00015684,2]
[340242222,1728903034751,-904.38669893,0.0001569,2]
[340242223,1728903034761,-700.0,0.00016,2]
[340242224,1728903034770,-362.64,0.00016438,2]
[340242225,1728903034780,-150.0,0.00016438,2]
[340242226,1728903034789,-300.0,0.00016438,2]
[340242227,1728903034799,-169.44943357,0.00016537,4]
[340242228,1728903034812,-904.38669893,0.00016649,2]
[340242229,1728903034822,-163.38,0.00016712,2]
[340242230,1728903034832,-65230.7553115,0.00016763,3]
[340242231,1728903034841,-82242.20237246,0.00016773,2]
[340242232,1728903035034,-3487.72454368,0.00016773,2]
[340242233,1728903035046,-7053.36915987,0.00016773,2]
[340242234,1728903035057,-712.8352503,0.00016773,2]
[340242235,1728903035068,-413.47322908,0.00016773,2]
[340242236,1728903035079,-15607.65170892,0.00016773,2]
[340242237,1728903035097,-1137.33097441,0.00016773,2]
[340242238,1728903035108,-8741.94797892,0.00016773,2]
[340242239,1728903035118,-909.3594811,0.00016773,2]
[340242240,1728903035129,-6149.07558323,0.00016773,2]
[340242241,1728903035140,-337.36323209,0.00016773,2]
[340242242,1728903035150,-883.0,0.00016773,2]
[340242248,1728903038363,-4948.11,0.00012329,2]
[340242250,1728903038373,-1538.58774471,0.00016773,2]
[340242251,1728903038554,-15000.0,0.00016773,2]
[340242252,1728903038565,-650.22,0.00016773,2]
[340242253,1728903038576,-18942.67687625,0.00016773,2]
[340242254,1728903038640,-0.42870865,0.00016773,2]
[340242255,1728903038688,-6776.7347228,0.00016773,2]
[340242382,1728903040223,-55924.41,0.00016773,2]
[340242383,1728903040259,-671.55215532,0.00016773,2]
[340242420,1728903040655,-14984.97527821,0.00016773,2]
[340242422,1728903040665,-217.46328046,0.00016779,2]
[340242423,1728903040675,-19699.58010021,0.00016863,3]
[340242426,1728903040687,-630.61,0.00016863,3]
[340242666,1728903043297,-1083.0,0.00014171,2]
[340242668,1728903043307,-1413.39500359,0.00016863,3]
[340242670,1728903043316,-150.0,0.00016871,2]
[340242672,1728903043326,-1478.9609835,0.00016873,2]
[340242674,1728903043337,-12050.0390165,0.00016873,2]
[340242676,1728903043347,-1150.0,0.00016873,2]
[340242678,1728903043356,-1000.0,0.00017184,2]
[340242680,1728903043366,-306.67,0.00017188,2]
[340242682,1728903043375,-151.0,0.00017279,2]
[340242684,1728903043385,-157.668429,0.00017279,2]
[340242686,1728903043394,-157.668429,0.00017279,2]
[340242688,1728903043403,-214.882878,0.00017279,2]
[340242690,1728903043412,-151.0,0.00017279,2]
[340242692,1728903043421,-151.0,0.00017279,2]
[340242694,1728903043430,-151.0,0.00017279,2]
[340242696,1728903043439,-405.083581,0.00017279,2]
[340242698,1728903043449,-405.083581,0.00017279,2]
[340242700,1728903043458,-151.0,0.00017279,2]
[340242702,1728903043468,-151.0,0.00017279,2]
[340242704,1728903043477,-150.0,0.00017304,2]
[340242706,1728903043486,-227.0,0.000174,2]
[340242708,1728903043496,-1243.6,0.00017448,2]
[340242710,1728903043505,-904.38669893,0.00017607,2]
[340242712,1728903043514,-1362.44,0.00017609,2]
[340242714,1728903043523,-755.81,0.00017699,2]
[340242716,1728903043533,-424.12,0.00017699,2]
[340242718,1728903043542,-755.81,0.00017699,2]
[340242729,1728903043645,-755.81,0.00017699,2]
[340242732,1728903043656,-424.12,0.00017699,2]
[340242734,1728903043666,-753.19,0.00017699,2]
[340242735,1728903043676,-424.12,0.00017699,2]
[340242738,1728903043686,-423.67,0.00017699,2]
[340242739,1728903043695,-150.0,0.00017736,2]
[340242741,1728903043705,-750.0,0.00018,2]
[340242743,1728903043714,-155.629252,0.00018131,2]
[340242745,1728903043723,-150.0,0.00018169,2]
[340242747,1728903043733,-1223.0,0.000183,2]
[340242749,1728903043743,-858.88,0.00018384,2]
[340242751,1728903043757,-300.76,0.00018384,2]
[340242753,1728903043766,-151.44,0.00018384,2]
[340242755,1728903043775,-150.0,0.00018384,2]
[340242757,1728903043785,-300.0,0.00018384,2]
[340242759,1728903043794,-300.0,0.00018384,2]
[340242761,1728903043805,-718.18,0.00018384,2]
[340242763,1728903043817,-300.0,0.00018384,2]
[340242765,1728903043826,-174.24,0.00018384,2]
[340242767,1728903043836,-150.0,0.00018384,2]
[340242769,1728903043847,-150.0,0.00018384,2]
[340242771,1728903043857,-150.0,0.00018384,2]
[340242773,1728903043866,-150.0,0.00018384,2]
[340242775,1728903043877,-150.0,0.00018384,2]
[340242777,1728903043886,-904.38669893,0.00018566,2]
[340242779,1728903043896,-150.0,0.00018601,2]
[340242782,1728903043905,-1000.0,0.00018746,2]
[340242785,1728903043915,-306.67,0.0001875,2]
[340242787,1728903043924,-217.0,0.000189,2]
[340242789,1728903043933,-150.0,0.00019034,2]
[340242791,1728903043942,-150.0,0.00019466,2]
[340242793,1728903043952,-169.44943357,0.00019469,4]
[340242795,1728903043961,-500.798567,0.000195,2]
[340242797,1728903043972,-904.38669893,0.00019524,2]
[340242799,1728903043981,-443.16,0.00019566,2]
[340242801,1728903043991,-7500.0,0.0001969,2]
[340242803,1728903044001,-1243.6,0.00019712,2]
[340242805,1728903044010,-151.0,0.0001979,2]
[340242807,1728903044020,-198.462705,0.0001979,2]
[340242809,1728903044030,-198.462705,0.0001979,2]
[340242811,1728903044039,-151.0,0.0001979,2]
[340242813,1728903044048,-168.342459,0.0001979,2]
[340242815,1728903044058,-168.342459,0.0001979,2]
[340242817,1728903044067,-729.514083,0.0001979,2]
[340242819,1728903044076,-729.514083,0.0001979,2]
[340242821,1728903044086,-151.0,0.0001979,2]
[340242823,1728903044095,-228.407638,0.0001979,2]
[340242825,1728903044104,-228.407638,0.0001979,2]
[340242827,1728903044114,-151.0,0.0001979,2]
[340242829,1728903044123,-151.0,0.0001979,2]
[340242831,1728903044132,-405.083581,0.0001979,2]
[340242832,1728903044141,-405.083581,0.0001979,2]
[340242834,1728903044150,-151.0,0.0001979,2]
[340242836,1728903044159,-151.0,0.0001979,2]
[340242838,1728903044168,-151.0,0.000198,2]
[340242840,1728903044177,-157.668429,0.000198,2]
[340242842,1728903044186,-157.668429,0.000198,2]
[340242844,1728903044195,-15604.6476697,0.00019834,4]
[340242846,1728903044205,-21743.5851038,0.00019843,4]
[340242848,1728903044214,-624.0,0.00019863,2]
[340242850,1728903044223,-5796.63,0.00019873,2]
[340242851,1728903044232,-224.546432,0.0001989,2]
[340242853,1728903044241,-224.546432,0.0001989,2]
[340242855,1728903044252,-151.0,0.0001989,2]
[340242857,1728903044261,-151.0,0.0001989,2]
[340242859,1728903044270,-186.0007,0.0001989,2]
[340242860,1728903044279,-186.0007,0.0001989,2]
[340242862,1728903044289,-150.0,0.00019899,2]
[340242864,1728903044298,-151.0,0.0001998,2]
[340242866,1728903044307,-15604.6476697,0.0001998,4]
[340242868,1728903044316,-237.38,0.00019989,2]
[340242870,1728903044325,-151.0,0.0001999,2]
[340242872,1728903044335,-21743.5851038,0.0001999,4]
[340242874,1728903044344,-161.946064,0.0002,2]
[340242876,1728903044353,-151.0,0.0002,2]
[340242878,1728903044362,-224.453446,0.0002,2]
[340242880,1728903044371,-224.453446,0.0002,2]
[340242882,1728903044380,-151.0,0.0002,2]
[340242884,1728903044390,-151.0,0.0002,2]
[340242886,1728903044399,-151.0,0.0002,2]
[340242888,1728903044408,-151.0,0.0002,2]
[340242890,1728903044417,-201.535813,0.0002,2]
[340242892,1728903044426,-201.535813,0.0002,2]
[340242894,1728903044435,-2000.0,0.0002,2]
[340242896,1728903044444,-150.0,0.0002,2]
[340242898,1728903044453,-800.0,0.0002,2]
[340242900,1728903044463,-3854.498867,0.0002001,2]
[340242902,1728903044471,-237.38,0.00020126,2]
[340242904,1728903044481,-151.3970832,0.00020244,2]
[340242906,1728903044490,-237.38,0.00020263,2]
[340242908,1728903044501,-362.64,0.00020274,2]
[340242910,1728903044509,-150.0,0.00020332,2]
[340242911,1728903044518,-237.38,0.000204,2]
[340242913,1728903044527,-44736.0,0.000204,2]
[340242915,1728903044536,-904.38669893,0.00020483,2]
[340242917,1728903044545,-151.0,0.0002049,2]
[340242919,1728903044554,-198.462705,0.0002049,2]
[340242921,1728903044564,-198.462705,0.0002049,2]
[340242923,1728903044573,-151.0,0.0002049,2]
[340242925,1728903044582,-168.342459,0.0002049,2]
[340242927,1728903044592,-168.342459,0.0002049,2]
[340242929,1728903044601,-729.514083,0.0002049,2]
[340242930,1728903044611,-729.514083,0.0002049,2]
[340242931,1728903044620,-228.407638,0.0002049,2]
[340242932,1728903044629,-228.407638,0.0002049,2]
[340242933,1728903044639,-250.0,0.000205,2]
[340242934,1728903044648,-163.99906473,0.000205,2]
[340242935,1728903044657,-1500.0,0.000205,2]
[340242936,1728903044666,-182.0,0.000205,2]
[340242938,1728903044676,-500.0,0.000205,2]
[340242940,1728903044685,-237.38,0.00020537,2]
[340242942,1728903044694,-15604.6476697,0.00020546,4]
[340242944,1728903044703,-272.4,0.00020548,2]
[340242946,1728903044713,-224.546432,0.00020556,2]
[340242947,1728903044722,-224.546432,0.00020556,2]
[340242949,1728903044731,-151.0,0.00020556,2]
[340242951,1728903044740,-151.0,0.00020556,2]
[340242952,1728903044750,-151.0,0.00020556,2]
[340242953,1728903044760,-157.668429,0.00020556,2]
[340242954,1728903044769,-157.668429,0.00020556,2]
[340242955,1728903044778,-151.0,0.00020556,2]
[340242956,1728903044788,-151.0,0.00020556,2]
[340242957,1728903044797,-151.0,0.00020556,2]
[340242958,1728903044810,-405.083581,0.00020556,2]
[340242959,1728903044819,-405.083581,0.00020556,2]
[340242960,1728903044828,-186.0007,0.00020556,2]
[340242961,1728903044838,-186.0007,0.00020556,2]
[340242962,1728903044847,-151.0,0.00020556,2]
[340242963,1728903044856,-151.0,0.00020556,2]
[340242964,1728903044865,-207.966692,0.00020556,2]
[340242965,1728903044874,-207.966692,0.00020556,2]
[340242966,1728903044885,-151.0,0.00020556,2]
[340242967,1728903044896,-151.0,0.00020556,2]
[340242968,1728903044905,-157.718121,0.00020556,2]
[340242969,1728903044914,-157.718121,0.00020556,2]
[340242970,1728903044923,-163.38,0.00020639,2]
[340242971,1728903044932,-237.38,0.00020674,2]
[340242972,1728903044941,-21743.5851038,0.00020693,4]
[340242973,1728903044951,-151.0,0.00020713,2]
[340242974,1728903044960,-150.0,0.00020764,2]
[340242975,1728903044970,-237.38,0.00020811,2]
[340242976,1728903044979,-15604.6476697,0.0002088,4]
[340242977,1728903044988,-21743.5851038,0.0002089,4]
[340242978,1728903044999,-15604.6476697,0.0002089,4]
[340242979,1728903045008,-2300.0,0.000209,7]
[340242980,1728903045017,-237.38,0.00020948,2]
[340242981,1728903045028,-15604.6476697,0.0002099,4]
[340242982,1728903045037,-4600.0,0.00021,7]
[340242983,1728903045046,-11517.0,0.00021,3]
[340242984,1728903045055,-237.38,0.00021085,2]
[340242985,1728903045064,-7000.0,0.000211,7]
[340242986,1728903045073,-3778.0,0.000211,2]
[340242987,1728903045083,-151.0,0.00021122,2]
[340242988,1728903045091,-156.059633,0.00021122,2]
[340242989,1728903045101,-156.059633,0.00021122,2]
[340242990,1728903045110,-150.0,0.00021197,2]
[340242991,1728903045118,-9300.0,0.000212,7]
[340242992,1728903045128,-237.38,0.00021222,2]
[340242993,1728903045137,-15604.6476697,0.0002128,4]
[340242994,1728903045146,-21743.5851038,0.0002129,4]
[340242995,1728903045155,-11600.0,0.000213,7]
[340242996,1728903045164,-237.38,0.00021359,2]
[340242997,1728903045174,-151.0,0.00021382,2]
[340242998,1728903045183,-2300.0,0.000214,7]
[340242999,1728903045192,-151.0,0.000214,2]
[340243000,1728903045201,-904.38669893,0.00021441,2]
[340243001,1728903045210,-15604.6476697,0.0002148,4]
[340243002,1728903045220,-21743.5851038,0.0002149,4]
[340243003,1728903045229,-237.38,0.00021496,2]
[340243004,1728903045238,-2300.0,0.000215,7]
[340243005,1728903045329,-500.0,0.000215,2]
[340243006,1728903045340,-150.0,0.00021554,2]
[340243007,1728903045350,-15604.6476697,0.00021556,4]
[340243008,1728903045359,-1500.0,0.00021566,2]
[340243009,1728903045369,-2300.0,0.000216,7]
[340243010,1728903045378,-11517.0,0.000216,5]
[340243011,1728903045387,-150.0,0.00021629,2]
[340243012,1728903045397,-237.38,0.00021633,2]
[340243013,1728903045406,-2300.0,0.000217,7]
[340243014,1728903045415,-237.38,0.0002177,2]
[340243015,1728903045425,-2709.0,0.000218,7]
[340243016,1728903045435,-366.92107769,0.00021843,2]
[340243017,1728903045444,-259.8,0.00021857,2]
[340243018,1728903045453,-21743.5851038,0.00021886,4]
[340243019,1728903045463,-15604.6476697,0.00021888,4]
[340243020,1728903045472,-201.535813,0.00021898,2]
[340243021,1728903045482,-201.535813,0.00021898,2]
[340243022,1728903045494,-237.38,0.00021907,2]
[340243023,1728903045509,-150.0,0.00021913,2]
[340243024,1728903045518,-215.6,0.00021918,2]
[340243025,1728903045528,-283.53,0.00021918,2]
[340243026,1728903045537,-150.0,0.00021925,2]
[340243027,1728903045546,-150.0,0.00021927,2]
[340243028,1728903045555,-1243.6,0.00021976,2]
[340243029,1728903045564,-150.0,0.00021976,2]
[340243030,1728903045575,-21743.5851038,0.0002199,4]
[340243031,1728903045585,-15604.6476697,0.0002199,4]
[340243032,1728903045595,-32643.11373736,0.00022,14]
[340243033,1728903045604,-850.0,0.00022,2]
[340243034,1728903045614,-150.0,0.00022019,2]
[340243035,1728903045623,-237.38,0.00022044,2]
[340243036,1728903045633,-150.0,0.00022046,2]
[340243037,1728903045642,-150.0,0.00022048,2]
[340243038,1728903045651,-150.0,0.00022056,2]
[340243039,1728903045661,-150.0,0.00022057,2]
[340243040,1728903045670,-150.0,0.00022062,2]
[340243041,1728903045680,-15604.6476697,0.0002209,4]
[340243042,1728903045690,-150.0,0.00022101,2]
[340243043,1728903045699,-151.85608626,0.00022114,2]
[340243044,1728903045708,-150.0,0.0002212,2]
[340243045,1728903045718,-21743.5851038,0.00022156,5]
[340243046,1728903045728,-150.0,0.00022179,2]
[340243047,1728903045738,-237.38,0.00022181,2]
[340243048,1728903045749,-150.0,0.00022185,2]
[340243049,1728903045758,-150.0,0.000222,2]
[340243050,1728903045768,-150.0,0.00022219,2]
[340243051,1728903045777,-150.0,0.00022234,2]
[340243052,1728903045787,-15604.6476697,0.00022249,5]
[340243053,1728903045797,-1500.0,0.00022259,2]